bitfinex/quotes_SOLUSD_20240821
["timestamp","ask_amount","ask_price","bid_price","bid_amount"]
[1724281978753,15.1032,143.4,143.32,13.09]
[1724281979268,15.1032,143.4,143.33,5.02784214]
[1724281979430,15.1032,143.4,143.32,13.09]
[1724281979840,15.1032,143.4,143.33,20.0]
[1724281981158,28.1932,143.4,143.33,20.0]
[1724281981550,15.1032,143.4,143.33,20.0]
[1724281981740,1.74380033,143.39,143.33,20.0]
[1724281982255,15.1032,143.4,143.33,20.0]
[1724281982466,1.74394094,143.39,143.28,35.2678]
[1724281982666,14.83394094,143.39,143.3,13.09]
[1724281982875,13.09,143.39,143.31,20.0]
[1724281983566,14.83416048,143.39,143.31,20.0]
[1724281983742,6.4233,143.38,143.31,20.0]
[1724281984058,15.8844,143.36,143.31,20.0]
[1724281984435,1.74416694,143.35,143.31,20.0]
[1724281984632,1.74416694,143.35,143.28,13.09]
[1724281984840,15.8844,143.36,143.28,13.09]
[1724281985163,28.9744,143.36,143.28,13.09]
[1724281986236,28.9744,143.36,143.29,20.0]
[1724281986853,15.8844,143.36,143.3,13.09]
[1724281987160,15.8844,143.36,143.32,13.09]
[1724281988455,15.8844,143.36,143.31,45.25098]
[1724281988456,15.8844,143.36,143.31,58.34098]
[1724281988644,15.8844,143.36,143.31,13.34098]
[1724281989235,1.7441552,143.35,143.29,33.09]
[1724281989861,15.8844,143.36,143.3,10.23960993]
[1724281990851,15.8844,143.36,143.31,1.39537668]
[1724281991864,15.8844,143.36,143.31,14.48537668]
[1724281992357,15.8844,143.36,143.31,13.09]
[1724282002675,15.8844,143.36,143.3,10.11411993]
[1724282002878,1.74420815,143.35,143.29,33.09]
[1724282004277,15.8844,143.36,143.29,33.09]
[1724282004655,15.8844,143.36,143.29,43.20411993]
[1724282005689,15.8844,143.36,143.3,10.11411993]
[1724282010485,15.8844,143.36,143.33,13.09]
[1724282010991,15.8844,143.36,143.32,13.09]
[1724282011359,15.8844,143.36,143.31,0.25098]
[1724282013393,15.8844,143.36,143.3,23.20411993]
[1724282013573,1.74420042,143.35,143.3,23.20411993]
[1724282014886,15.8844,143.36,143.3,23.20411993]
[1724282015785,1.74418597,143.35,143.3,23.20411993]
[1724282016687,15.8844,143.36,143.3,23.20411993]
[1724282017688,1.744295,143.35,143.3,10.11411993]
[1724282017888,16.3089,143.33,143.26,10.11411993]
[1724282018673,16.3089,143.33,143.26,23.20411993]
[1724282021787,1.74477715,143.32,143.26,10.11411993]
[1724282022102,16.3089,143.33,143.26,10.11411993]
[1724282022800,16.3089,143.33,143.26,23.20411993]
[1724282024071,16.3089,143.33,143.28,13.09]
[1724282024277,16.3089,143.33,143.26,23.20411993]
[1724282027415,16.3089,143.33,143.28,13.09]
[1724282027590,16.3089,143.33,143.3,13.09]
[1724282031895,16.3089,143.33,143.31,1.39548593]
[1724282033493,16.3089,143.33,143.3,13.09]
[1724282034096,15.4731,143.37,143.3,13.09]
[1724282038524,15.4731,143.37,143.29,0.12549]
[1724282038727,15.4731,143.37,143.3,13.09]
[1724282041116,15.4731,143.37,143.31,18.11857771]
[1724282041819,15.4731,143.37,143.31,13.09]
[1724282047245,15.4731,143.37,143.28,10.11411993]
[1724282047447,15.4731,143.37,143.29,18.11866399]
[1724282047631,15.4731,143.37,143.3,5.02866399]
[1724282047831,15.4731,143.37,143.29,13.09]
[1724282049630,15.4731,143.37,143.27,0.12549]
[1724282049829,15.4731,143.37,143.29,13.09]
[1724282050551,15.4731,143.37,143.29,23.20411993]
[1724282054251,15.4731,143.37,143.29,10.11411993]
[1724282055146,1.74444669,143.36,143.29,10.11411993]
[1724282055349,22.4036,143.35,143.29,10.11411993]
[1724282057220,1.74448174,143.34,143.29,10.11411993]
[1724282057420,22.4036,143.35,143.29,10.11411993]
[1724282062255,22.4036,143.35,143.29,23.20411993]
[1724282064529,22.4036,143.35,143.3,1.39551129]
[1724282064728,22.4036,143.35,143.29,23.20411993]
[1724282070757,22.4036,143.35,143.31,13.09]
[1724282071261,21.7472,143.39,143.33,13.09]
[1724282071469,21.7472,143.39,143.35,13.09]
[1724282079157,21.7472,143.39,143.32,55.36509993]
[1724282079371,21.7472,143.39,143.37,13.09]
[1724282083274,21.7472,143.39,143.35,13.09]
[1724282087343,1.74370937,143.38,143.33,13.09]
[1724282087970,21.7472,143.39,143.33,13.09]
[1724282089859,21.7472,143.39,143.33,23.20411993]
[1724282097178,21.7472,143.39,143.32,45.25098]
[1724282097179,21.7472,143.39,143.35,13.09]
[1724282097878,21.7472,143.39,143.35,23.20411993]
[1724282101887,21.7472,143.39,143.37,13.09]
[1724282102665,15.43,143.39,143.37,13.09]
[1724282107385,15.43,143.39,143.35,10.11411993]
[1724282107574,15.43,143.39,143.36,13.34098]
[1724282108591,15.43,143.39,143.36,18.36762069]
[1724282109289,15.43,143.39,143.37,5.02664069]
[1724282109592,15.43,143.39,143.37,18.11664069]
[1724282109766,15.43,143.39,143.37,5.02664069]
[1724282110173,15.43,143.39,143.37,18.11664069]
[1724282110372,15.43,143.39,143.37,13.09]
[1724282114194,1.74357844,143.38,143.34,21.21716007]
[1724282114377,1.74357844,143.38,143.35,13.15402225]
[1724282114577,1.74357844,143.38,143.36,5.02686218]
[1724282114780,1.74357844,143.38,143.35,8.12778013]
[1724282115092,15.43,143.39,143.36,5.02701477]
[1724282115399,1.74382308,143.38,143.37,5.02701477]
[1724282115704,1.74382308,143.38,143.37,5.02699608]
[1724282117383,15.43,143.39,143.37,5.02699608]
[1724282117571,15.43,143.39,143.38,5.02699608]
[1724282117777,22.0909,143.39,143.32,8.12774729]
[1724282117999,1.74394553,143.38,143.33,26.24515469]
[1724282118176,1.74394553,143.38,143.34,13.15515469]
[1724282118497,1.74394553,143.38,143.35,13.15515469]
[1724282118799,1.74394553,143.38,143.36,5.0274074]
[1724282118991,1.74394553,143.38,143.34,8.12851893]
[1724282119198,1.74394553,143.38,143.35,13.15598368]
[1724282119395,1.74394553,143.38,143.36,5.02746475]
[1724282119592,1.74394553,143.38,143.34,8.12851766]
[1724282119792,1.74394553,143.38,143.35,13.15600992]
[1724282119995,22.0909,143.39,143.36,5.02749226]
[1724282120294,22.0909,143.39,143.34,8.1285164]
[1724282120504,22.0909,143.39,143.35,13.15598192]
[1724282120679,1.74393917,143.38,143.36,5.02746552]
[1724282120870,1.74393917,143.38,143.34,8.12851766]
[1724282121075,1.74393917,143.38,143.35,13.15598396]
[1724282121292,22.0909,143.39,143.36,5.0274663]
[1724282121479,22.0909,143.39,143.34,8.12851893]
[1724282121686,22.0909,143.39,143.35,13.15601042]
[1724282121909,22.0909,143.39,143.36,5.02749149]
[1724282122114,22.0909,143.39,143.34,8.12856148]
[1724282122115,1.74392364,143.38,143.34,8.12856148]
[1724282122278,1.74392364,143.38,143.35,13.15605529]
[1724282122579,1.74392364,143.38,143.36,5.02749381]
[1724282122779,22.0909,143.39,143.34,8.12856275]
[1724282123002,22.0909,143.39,143.35,13.15605578]
[1724282123203,22.0909,143.39,143.36,5.02749303]
[1724282123407,22.0909,143.39,143.34,8.12860657]
[1724282123706,22.0909,143.39,143.35,13.15612711]
[1724282123894,22.0909,143.39,143.36,5.02752054]
[1724282124081,22.0909,143.39,143.34,8.12853279]
[1724282124273,22.0909,143.39,143.35,13.15599831]
[1724282124479,22.0909,143.39,143.36,5.02746552]
[1724282124685,22.0909,143.39,143.34,8.1285164]
[1724282124912,22.0909,143.39,143.35,26.24597155]
[1724282125087,22.0909,143.39,143.36,5.02745515]
[1724282125292,22.0909,143.39,143.35,13.09]
[1724282125494,22.0909,143.39,143.36,5.02745438]
[1724282125910,22.0909,143.39,143.35,13.09]
[1724282126109,22.0909,143.39,143.37,13.09]
[1724282126291,22.0909,143.39,143.38,5.02692065]
[1724282126708,15.43,143.39,143.38,5.02692065]
[1724282127009,0.860215,143.42,143.38,5.02692065]
[1724282127222,0.860215,143.42,143.37,13.09]
[1724282127414,0.860215,143.42,143.38,5.02652648]
[1724282127589,0.860215,143.42,143.39,5.02652648]
[1724282127795,0.860215,143.42,143.38,8.12664366]
[1724282127997,0.860215,143.42,143.39,5.02632117]
[1724282128192,0.860215,143.42,143.38,8.12664331]
[1724282128397,0.860215,143.42,143.39,5.02632194]
[1724282128598,0.860215,143.42,143.38,8.12665436]
[1724282128907,0.860215,143.42,143.39,5.02632869]
[1724282129112,0.860215,143.42,143.37,13.09]
[1724282129113,0.860215,143.42,143.38,8.12665048]
[1724282129418,0.860215,143.42,143.39,5.02632475]
[1724282129715,0.860215,143.42,143.38,8.12664915]
[1724282129915,0.860215,143.42,143.39,5.02632869]
[1724282130118,0.860215,143.42,143.38,8.12660529]
[1724282130414,0.860215,143.42,143.39,5.02629798]
[1724282130620,0.860215,143.42,143.38,8.12660529]
[1724282130908,0.860215,143.42,143.37,13.09]
[1724282131112,0.860215,143.42,143.38,13.15291321]
[1724282131302,0.860215,143.42,143.39,5.02630162]
[1724282131502,0.860215,143.42,143.38,8.12661159]
[1724282131717,0.860215,143.42,143.39,5.02630105]
[1724282131892,0.860215,143.42,143.38,8.12661159]
[1724282132092,0.860215,143.42,143.39,5.02630105]
[1724282132312,0.860215,143.42,143.37,13.09]
[1724282132502,0.860215,143.42,143.38,13.15290933]
[1724282132698,0.860215,143.42,143.39,5.02630027]
[1724282132900,0.860215,143.42,143.38,8.12660906]
[1724282133411,0.860215,143.42,143.37,13.09]
[1724282137509,0.860215,143.42,143.39,13.09]
[1724282138810,0.860215,143.42,143.41,13.09]
[1724282140125,0.860215,143.42,143.41,14.73528701]
[1724282140308,0.860215,143.42,143.41,59.73528701]
[1724282141006,0.860215,143.42,143.41,58.34098]
[1724282142210,0.860215,143.42,143.41,66.46517575]
[1724282143220,0.860215,143.42,143.41,58.34098]
[1724282144034,7.27902943,143.49,143.41,101.54509993]
[1724282144219,15.3436,143.51,143.45,13.09]
[1724282144419,15.3436,143.51,143.49,13.09]
[1724282145819,16.5816,143.54,143.5,1.39356853]
[1724282146431,16.5816,143.54,143.49,13.09]
[1724282147129,16.5816,143.54,143.48,13.09]
[1724282147306,16.5816,143.54,143.46,13.21549]
[1724282147508,16.5816,143.54,143.47,20.12549]
[1724282150128,1.74216198,143.53,143.47,20.12549]
[1724282150629,16.5816,143.54,143.47,20.12549]
[1724282150815,13.09,143.53,143.43,2.4166465]
[1724282151133,13.09,143.53,143.44,13.09]
[1724282151321,13.09,143.53,143.45,20.0]
[1724282151834,13.09,143.53,143.44,13.09]
[1724282154134,23.5484,143.54,143.44,13.09]
[1724282154634,6.2122,143.53,143.45,0.25098]
[1724282154838,6.2122,143.53,143.45,20.25098]
[1724282155319,7.28521004,143.52,143.45,20.25098]
[1724282160665,15.8599,143.5,143.45,20.25098]
[1724282161232,1.74255523,143.49,143.41,10.11411993]
[1724282161537,28.9499,143.5,143.42,78.34098]
[1724282163326,1.74269769,143.49,143.42,78.34098]
[1724282163919,15.8599,143.5,143.42,78.34098]
[1724282164438,6.5908,143.49,143.42,78.34098]
[1724282164640,1.74281117,143.48,143.42,20.25098]
[1724282164938,1.74281117,143.48,143.42,20.0]
[1724282165241,8.33377965,143.49,143.41,23.20411993]
[1724282165426,1.74297863,143.48,143.41,23.20411993]
[1724282165629,22.12029591,143.48,143.41,10.11411993]
[1724282166338,15.189,143.47,143.38,13.09]
[1724282166519,1.74314946,143.46,143.39,20.0]
[1724282166715,1.74314911,143.45,143.39,20.0]
[1724282167647,1.74314911,143.45,143.4,0.25098]
[1724282167820,1.74314734,143.46,143.4,0.25098]
[1724282168025,15.189,143.47,143.4,0.25098]
[1724282172529,21.0358657,143.46,143.36,23.20411993]
[1724282172745,1.74336014,143.45,143.37,20.0]
[1724282173344,19.2927,143.46,143.37,20.0]
[1724282174149,19.2927,143.46,143.38,0.25098]
[1724282174859,19.2927,143.46,143.38,10.36509993]
[1724282175037,19.2927,143.46,143.39,20.0]
[1724282175575,16.3619,143.45,143.39,20.0]
[1724282177963,16.3619,143.45,143.38,10.36509993]
[1724282178261,16.3619,143.45,143.39,20.0]
[1724282181477,16.3619,143.45,143.39,13.09]
[1724282181646,16.3619,143.45,143.4,0.12549]
[1724282187354,16.3619,143.45,143.4,0.25098]
[1724282188155,18.10495281,143.45,143.4,0.25098]
[1724282189285,18.10495281,143.45,143.35,30.11411993]
[1724282189286,18.10495281,143.45,143.37,13.09]
[1724282189454,18.10495281,143.45,143.38,20.25098]
[1724282190473,18.10495281,143.45,143.38,20.0]
[1724282190675,13.09,143.43,143.35,10.11411993]
[1724282190862,1.74367956,143.42,143.35,10.11411993]
[1724282191366,13.09,143.43,143.35,10.11411993]
[1724282191861,17.21836452,143.42,143.35,10.11411993]
[1724282192061,15.4747,143.42,143.36,20.0]
[1724282192859,15.4747,143.42,143.36,30.11411993]
[1724282193274,15.4747,143.42,143.37,5.02633283]
[1724282194077,15.4747,143.42,143.36,30.11411993]
[1724282194280,15.4747,143.42,143.37,5.02633283]
[1724282197376,15.4747,143.42,143.37,5.02635494]
[1724282198055,15.4747,143.42,143.36,43.32960993]
[1724282198260,15.4747,143.42,143.37,5.27731167]
[1724282198477,15.4747,143.42,143.37,0.25098]
[1724282203583,15.4747,143.42,143.38,5.02631702]
[1724282203971,15.4747,143.42,143.37,0.25098]
[1724282205267,15.4747,143.42,143.37,8.3776395]
[1724282207168,15.4747,143.42,143.37,8.37763949]
[1724282210190,15.4747,143.42,143.37,0.25098]
[1724282215679,15.4747,143.42,143.36,30.11411993]
[1724282215893,15.4747,143.42,143.37,8.12666075]
[1724282216089,1.74368042,143.41,143.36,30.11411993]
[1724282216393,1.74368042,143.41,143.37,8.12697688]
[1724282216574,1.74368042,143.41,143.36,30.11411993]
[1724282216775,1.74368042,143.41,143.37,8.12697941]
[1724282216976,1.74368042,143.41,143.36,30.11411993]
[1724282217172,6.5395,143.4,143.37,8.12703015]
[1724282217385,15.5012,143.38,143.32,10.11411993]
[1724282217699,1.74405179,143.37,143.33,8.12703015]
[1724282217903,1.74405179,143.37,143.32,10.11411993]
[1724282218090,1.74405179,143.37,143.33,8.12888385]
[1724282218399,1.74405179,143.37,143.33,8.12895669]
[1724282218898,6.5395,143.36,143.33,8.12895669]
[1724282219211,1.74427528,143.35,143.32,10.11411993]
[1724282219774,1.74427528,143.35,143.32,18.24319498]
[1724282220077,1.74427528,143.35,143.32,10.11411993]
[1724282220278,6.5395,143.36,143.32,10.11411993]
[1724282220487,6.5395,143.36,143.32,18.24319498]
[1724282220701,6.5395,143.36,143.3,8.12907505]
[1724282220879,15.9107,143.35,143.31,8.12907505]
[1724282221101,15.9107,143.35,143.29,8.12907505]
[1724282221102,30.74532572,143.35,143.29,8.12907505]
[1724282221275,30.74532572,143.35,143.28,10.11411993]
[1724282222095,13.09,143.33,143.28,10.11411993]
[1724282222312,15.9107,143.3,143.2,20.0]
[1724282222602,15.9107,143.3,143.24,13.09]
[1724282222774,15.9107,143.3,143.25,10.11411993]
[1724282223989,15.9107,143.3,143.26,13.09]
[1724282224303,15.9107,143.3,143.26,23.20411993]
[1724282225495,15.9107,143.3,143.28,13.09]
[1724282226805,22.9273,143.34,143.28,13.09]
[1724282226978,22.9273,143.34,143.29,0.25098]
[1724282227179,1.74446158,143.33,143.26,23.20411993]
[1724282227401,22.9273,143.34,143.26,23.20411993]
[1724282227402,22.9273,143.34,143.27,20.25098]
[1724282227585,1.74463362,143.33,143.27,20.25098]
[1724282228493,1.74464117,143.32,143.27,20.25098]
[1724282228801,1.74466463,143.31,143.27,20.25098]
[1724282228977,1.74466463,143.31,143.27,20.0]
[1724282229582,22.9273,143.34,143.27,20.0]
[1724282230786,1.74473716,143.33,143.27,20.0]
[1724282230986,1.74473891,143.32,143.27,20.0]
[1724282231801,1.74473891,143.32,143.26,20.0]
[1724282232390,13.09,143.33,143.26,20.0]
[1724282237683,15.5738,143.32,143.26,20.0]
[1724282247133,15.5738,143.32,143.26,30.11411993]
[1724282251302,6.59,143.31,143.24,13.09]
[1724282251509,1.74499376,143.3,143.24,13.09]
[1724282253246,1.74499376,143.3,143.25,20.0]
[1724282257335,1.74500854,143.29,143.23,33.21549]
[1724282259915,6.59,143.31,143.23,33.21549]
[1724282262229,15.1597,143.28,143.15,255.8]
[1724282262441,1.74550824,143.27,143.17,9.55352382]
[1724282262617,23.28820954,143.26,143.18,13.09]
[1724282262825,21.5426,143.26,143.18,13.09]
[1724282264235,21.5426,143.26,143.19,20.0]
[1724282265741,21.5426,143.26,143.2,13.21549]
[1724282268344,21.5426,143.26,143.2,0.12549]
[1724282268943,21.5426,143.26,143.2,0.25098]
[1724282271429,21.5426,143.26,143.2,0.12549]
[1724282271633,21.5426,143.26,143.19,33.09]
[1724282274051,21.5426,143.26,143.19,20.0]
[1724282274224,21.5426,143.26,143.18,13.21549]
[1724282274428,21.5426,143.26,143.19,20.0]
[1724282278449,15.444,143.24,143.16,9.55352382]
[1724282279745,15.444,143.24,143.17,20.25098]
[1724282279943,15.444,143.24,143.17,33.34098]
[1724282280150,15.444,143.24,143.17,42.89450382]
[1724282291265,15.444,143.24,143.17,33.34098]
[1724282291657,6.5948,143.23,143.17,33.34098]
[1724282295270,6.5948,143.23,143.19,13.09]
[1724282303465,6.5948,143.23,143.17,29.80450382]
[1724282303794,6.5948,143.23,143.18,13.09]
[1724282304087,6.5948,143.23,143.19,0.25098]
[1724282306380,6.5948,143.23,143.17,29.55352382]
[1724282306686,6.5948,143.23,143.18,0.25098]
[1724282307059,6.5948,143.23,143.14,9.55352382]
[1724282307060,15.2677,143.21,143.14,9.55352382]
[1724282307264,1.74609207,143.2,143.14,9.55352382]
[1724282307454,6.6058,143.19,143.1,36.2986]
[1724282307660,6.6058,143.19,143.13,13.09]
[1724282308369,6.6058,143.19,143.13,22.64352382]
[1724282308959,6.6058,143.19,143.14,20.0]
[1724282309264,6.6058,143.19,143.14,33.09]
[1724282312261,6.6058,143.19,143.14,20.0]
[1724282313184,15.2677,143.18,143.14,20.0]
[1724282314581,15.2677,143.18,143.15,13.09]
[1724282314760,15.2677,143.18,143.15,13.21549]
[1724282320972,15.2677,143.18,143.15,13.09]
[1724282323013,15.2677,143.18,143.14,33.09]
[1724282323796,15.2677,143.18,143.15,0.25098]
[1724282324171,15.2677,143.18,143.15,5.28443419]
[1724282328599,15.2677,143.18,143.15,0.25098]
[1724282328980,15.2677,143.18,143.15,5.2844482]
[1724282332384,15.2677,143.18,143.16,13.09]
[1724282332880,22.6208,143.22,143.17,0.25098]
[1724282333084,22.6208,143.22,143.18,13.09]
[1724282334309,22.6208,143.22,143.16,18.1234682]
[1724282334509,22.6208,143.22,143.16,13.09]
[1724282334809,22.6208,143.22,143.16,18.1234682]
[1724282334994,22.6208,143.22,143.16,13.09]
[1724282335193,22.6208,143.22,143.16,18.1234682]
[1724282335390,22.6208,143.22,143.16,13.09]
[1724282335604,22.6208,143.22,143.16,18.1234682]
[1724282335797,22.6208,143.22,143.16,13.09]
[1724282335998,22.6208,143.22,143.16,18.12314653]
[1724282336205,22.6208,143.22,143.16,13.09]
[1724282336505,22.6208,143.22,143.16,18.12314653]
[1724282336808,22.6208,143.22,143.16,13.09]
[1724282336997,22.6208,143.22,143.16,18.12314653]
[1724282337189,22.6208,143.22,143.16,13.09]
[1724282337393,22.6208,143.22,143.16,18.12314653]
[1724282337586,22.6208,143.22,143.18,13.09]
[1724282340191,22.6208,143.22,143.17,0.12549]
[1724282340390,22.6208,143.22,143.17,38.37412653]
[1724282340599,22.6208,143.22,143.17,13.21549]
[1724282341011,22.6208,143.22,143.17,18.24827668]
[1724282341311,22.6208,143.22,143.17,18.24830427]
[1724282341514,22.6208,143.22,143.17,13.21549]
[1724282341707,22.6208,143.22,143.17,18.24830427]
[1724282341908,22.6208,143.22,143.17,13.21549]
[1724282342100,22.6208,143.22,143.18,0.12549]
[1724282342515,22.6208,143.22,143.19,13.09]
[1724282347605,22.6208,143.22,143.18,5.03284344]
[1724282349021,22.6208,143.22,143.17,13.21549]
[1724282349201,22.6208,143.22,143.18,5.03278689]
[1724282349400,22.6208,143.22,143.17,13.21549]
[1724282349614,22.6208,143.22,143.18,5.03278689]
[1724282349814,22.6208,143.22,143.17,13.21549]
[1724282350015,22.6208,143.22,143.18,5.03278611]
[1724282350202,22.6208,143.22,143.17,13.21549]
[1724282351420,22.6208,143.22,143.18,5.03270378]
[1724282352725,22.6208,143.22,143.17,13.21549]
[1724282353021,22.6208,143.22,143.18,5.03279915]
[1724282353225,22.6208,143.22,143.17,13.21549]
[1724282354119,22.6208,143.22,143.15,13.09]
[1724282354304,22.6208,143.22,143.16,20.25098]
[1724282354514,22.6208,143.22,143.16,20.12549]
[1724282354706,22.6208,143.22,143.16,20.0]
[1724282355618,1.74601285,143.21,143.16,20.0]
[1724282355829,1.74601285,143.21,143.15,13.09]
[1724282356029,1.74601285,143.21,143.16,20.0]
[1724282356722,22.6208,143.22,143.16,20.0]
[1724282371221,22.6208,143.22,143.17,13.09]
[1724282376415,22.6208,143.22,143.16,20.0]
[1724282376617,22.6208,143.22,143.16,13.09]
[1724282381560,22.6208,143.22,143.18,13.09]
[1724282385028,1.74582206,143.21,143.16,13.09]
[1724282385229,1.74582206,143.21,143.17,20.0]
[1724282386145,1.74582206,143.21,143.15,0.12549]
[1724282386347,1.74609128,143.2,143.15,13.09]
[1724282386927,15.8743,143.19,143.14,0.25098]
[1724282387232,6.1621,143.18,143.13,9.55352382]
[1724282389535,6.1621,143.18,143.14,13.09]
[1724282390343,6.1621,143.18,143.16,13.09]
[1724282390927,6.1621,143.18,143.14,13.09]
[1724282394052,6.1621,143.18,143.13,9.55352382]
[1724282394252,6.1621,143.18,143.13,22.64352382]
[1724282394929,6.1621,143.18,143.13,9.55352382]
[1724282395139,6.1621,143.18,143.13,22.64352382]
[1724282396228,6.1621,143.18,143.15,13.09]
[1724282404148,15.8743,143.19,143.17,13.09]
[1724282408569,15.8743,143.19,143.14,0.12549]
[1724282408871,15.8743,143.19,143.14,13.21549]
[1724282409160,15.8743,143.19,143.15,20.0]
[1724282411069,15.8743,143.19,143.11,9.55352382]
[1724282411250,15.8743,143.19,143.12,33.34098]
[1724282411448,15.8743,143.19,143.12,13.34098]
[1724282412273,15.8743,143.19,143.14,13.09]
[1724282413754,15.8743,143.19,143.16,13.09]
[1724282416583,15.8743,143.19,143.14,13.09]
[1724282417972,15.8743,143.19,143.15,5.03359248]
[1724282418378,15.8743,143.19,143.16,5.03359248]
[1724282418697,15.8743,143.19,143.14,13.09]
[1724282420592,15.8743,143.19,143.18,13.09]
[1724282421098,15.8743,143.19,143.15,0.12549]
[1724282421264,15.8743,143.19,143.15,13.21549]
[1724282423206,15.8743,143.19,143.17,13.09]
[1724282426520,15.8743,143.19,143.15,0.12549]
[1724282426699,15.8743,143.19,143.16,13.09]
[1724282433788,6.1161,143.21,143.18,13.09]
[1724282444615,6.1161,143.21,143.14,0.25098]
[1724282444814,6.1161,143.21,143.17,13.09]
[1724282451328,15.422,143.22,143.17,13.09]
[1724282454537,15.422,143.22,143.14,45.25098]
[1724282454731,1.74591659,143.21,143.16,13.09]
[1724282454920,15.422,143.22,143.16,13.09]
[1724282462735,15.422,143.22,143.16,13.09]
[1724282465332,15.422,143.22,143.17,0.12549]
[1724282468549,15.422,143.22,143.16,13.09]
[1724282468550,1.74579773,143.21,143.16,13.09]
[1724282468725,15.422,143.22,143.16,13.09]
[1724282475750,15.422,143.22,143.15,20.12549]
[1724282475954,1.7459835,143.21,143.16,13.09]
[1724282477131,15.422,143.22,143.16,13.09]
[1724282477568,1.74600036,143.21,143.16,13.09]
[1724282477935,15.422,143.22,143.16,13.09]
[1724282478134,1.74599344,143.21,143.16,13.09]
[1724282480533,15.422,143.22,143.16,13.09]
[1724282489974,1.74590025,143.21,143.16,13.09]
[1724282490279,15.7557,143.19,143.13,20.0]
[1724282490485,15.7557,143.19,143.07,35.8359]
[1724282490486,1.74649888,143.18,143.07,35.8359]
[1724282490765,8.27130833,143.17,143.09,13.09]
[1724282491282,8.27130833,143.17,143.07,25.38942382]
[1724282491573,15.7557,143.16,143.09,13.09]
[1724282491774,1.74675455,143.15,143.09,13.09]
[1724282493174,1.74675455,143.15,143.1,20.0]
[1724282493870,1.74675455,143.15,143.09,9.55352382]
[1724282494069,15.7557,143.16,143.09,9.55352382]
[1724282494271,58.09,143.15,143.09,9.55352382]
[1724282495446,58.09,143.15,143.07,13.09]
[1724282495772,58.09,143.15,143.06,22.64352382]
[1724282496004,58.09,143.15,143.07,20.0]
[1724282496170,45.0,143.15,143.07,20.0]
[1724282496355,15.7557,143.16,143.08,13.09]
[1724282497756,15.7557,143.16,143.1,13.09]
[1724282498058,15.7557,143.16,143.07,29.67901382]
[1724282498059,15.7557,143.16,143.12,13.09]
[1724282500592,15.7557,143.16,143.1,13.09]
[1724282500767,17.50241243,143.16,143.1,13.09]
[1724282501160,15.7557,143.16,143.1,13.09]
[1724282502974,15.7557,143.16,143.12,13.09]
[1724282506874,15.2396,143.19,143.14,13.09]
[1724282509401,1.74633776,143.18,143.12,13.09]
[1724282509776,1.74651362,143.17,143.12,13.09]
[1724282510899,1.74649284,143.18,143.12,13.09]
[1724282511094,1.74649284,143.16,143.1,13.09]
[1724282511296,1.74649284,143.16,143.11,20.0]
[1724282511603,28.3296,143.19,143.11,20.0]
[1724282513003,6.3908,143.18,143.11,20.0]
[1724282518309,6.3908,143.18,143.1,13.09]
[1724282518310,1.74665057,143.17,143.1,13.09]
[1724282518605,15.0759,143.16,143.1,13.09]
[1724282519504,15.0759,143.16,143.1,13.251577]
[1724282523398,16.0596,143.14,143.1,0.161577]
[1724282523600,1.74708051,143.13,143.1,0.161577]
[1724282525313,14.83708051,143.13,143.1,0.161577]
[1724282526002,22.7228,143.11,143.1,0.161577]
[1724282526311,22.7228,143.11,143.03,0.8606293]
[1724282526312,35.8128,143.11,143.03,0.8606293]
[1724282526619,1.74757633,143.1,143.03,0.8606293]
[1724282527691,1.74757633,143.1,143.03,20.8606293]
[1724282527912,35.8128,143.11,143.03,20.8606293]
[1724282528119,37.56037209,143.11,143.03,20.8606293]